fUST/lending_fUST_20250203
["ID","MTS","AMOUNT","RATE_DAILY","PERIOD"]
[351350204,1738531836322,-500.0,0.00016438,2]
[351350205,1738531836331,-850.29,0.00016438,2]
[351350206,1738531836341,-500.0,0.00016438,2]
[351350207,1738531836350,-500.0,0.00016438,2]
[351350208,1738531836359,-500.0,0.00016438,2]
[351350209,1738531836368,-500.0,0.00016438,2]
[351350210,1738531836378,-186.16168092,0.00016438,2]
[351350211,1738531836387,-1875.74,0.00016438,2]
[351350212,1738531836396,-500.0,0.00016438,2]
[351350213,1738531836406,-500.0,0.00016438,2]
[351350214,1738531836418,-504.96019955,0.00016438,2]
[351350215,1738531836427,-283.38112493,0.00016438,2]
[351350216,1738531836436,-500.0,0.00016438,2]
[351350217,1738531836445,-500.0,0.00016438,2]
[351350218,1738531836454,-500.0,0.00016438,2]
[351350219,1738531836463,-504.42855005,0.00016438,2]
[351350220,1738531836472,-500.0,0.00016438,2]
[351350221,1738531836482,-500.0,0.00016438,2]
[351350222,1738531836491,-500.0,0.00016438,2]
[351350223,1738531836501,-500.0,0.00016438,2]
[351350224,1738531836511,-500.0,0.00016438,2]
[351350225,1738531836520,-500.0,0.00016438,2]
[351350226,1738531836530,-500.0,0.00016438,2]
[351350227,1738531836539,-500.0,0.00016438,2]
[351350228,1738531836548,-500.0,0.00016438,2]
[351350229,1738531836557,-157.97766199,0.00016438,2]
[351350230,1738531836567,-500.0,0.00016438,2]
[351350231,1738531836576,-500.0,0.00016473,2]
[351350232,1738531836585,-500.0,0.00016473,2]
[351350233,1738531836594,-500.0,0.00016473,2]
[351350234,1738531836604,-297.58999872,0.00016561,2]
[351350235,1738531836613,-647.7,0.00016572,2]
[351350236,1738531836622,-500.0,0.00016574,2]
[351350237,1738531836631,-207.57670465,0.00016574,2]
[351350238,1738531836640,-271.18647031,0.00016574,2]
[351350239,1738531836649,-500.0,0.00016574,2]
[351350240,1738531836662,-500.0,0.00016574,2]
[351350241,1738531836671,-500.0,0.00016574,2]
[351350242,1738531836681,-500.0,0.00016574,2]
[351350243,1738531836690,-500.0,0.00016574,2]
[351350244,1738531836700,-647.7,0.00016574,2]
[351350245,1738531836710,-647.7,0.00016574,2]
[351350246,1738531836718,-647.7,0.00016574,2]
[351350247,1738531836728,-647.7,0.00016574,2]
[351350248,1738531836737,-400.52970098,0.00016575,2]
[351350249,1738531836746,-500.0,0.00016575,2]
[351350250,1738531836756,-500.0,0.00016575,2]
[351350251,1738531836765,-500.0,0.00016575,2]
[351350252,1738531836774,-500.0,0.00016575,2]
[351350253,1738531836784,-497.12911131,0.00016575,2]
[351350254,1738531836793,-500.0,0.00016575,2]
[351350255,1738531836802,-500.0,0.00016575,2]
[351350256,1738531836811,-500.0,0.00016575,2]
[351350257,1738531836820,-500.0,0.00016575,2]
[351350258,1738531836829,-500.0,0.00016575,2]
[351350259,1738531836840,-500.0,0.00016575,2]
[351350260,1738531836849,-500.0,0.00016575,2]
[351350261,1738531836858,-500.0,0.00016575,2]
[351350262,1738531836868,-208.54312881,0.00016575,2]
[351350263,1738531836877,-200.0,0.00016575,2]
[351350264,1738531836886,-500.0,0.00016575,2]
[351350265,1738531836895,-500.0,0.00016575,2]
[351350266,1738531836903,-500.0,0.00016575,2]
[351350267,1738531836912,-500.0,0.00016575,2]
[351350268,1738531836920,-500.0,0.00016575,2]
[351350269,1738531836928,-500.0,0.00016575,2]
[351350270,1738531836936,-500.0,0.00016575,2]
[351350271,1738531836943,-500.0,0.00016575,2]
[351350272,1738531836950,-500.0,0.00016575,2]
[351350273,1738531836959,-616.07167751,0.00016575,2]
[351350274,1738531836969,-500.0,0.00016575,2]
[351350275,1738531836978,-500.0,0.00016575,2]
[351350276,1738531836988,-500.0,0.00016575,2]
[351350277,1738531836997,-500.0,0.00016575,2]
[351350278,1738531837007,-500.0,0.00016575,2]
[351350279,1738531837016,-500.0,0.00016575,2]
[351350280,1738531837029,-500.0,0.00016575,2]
[351350281,1738531837038,-500.0,0.00016575,2]
[351350282,1738531837047,-500.0,0.00016575,2]
[351350283,1738531837057,-662.66,0.00016575,2]
[351350284,1738531837067,-500.0,0.00016575,2]
[351350285,1738531837076,-500.0,0.00016575,2]
[351350286,1738531837085,-500.0,0.00016575,2]
[351350287,1738531837095,-323.70288888,0.00016575,2]
[351350288,1738531837104,-500.0,0.00016575,2]
[351350289,1738531837114,-500.0,0.00016575,2]
[351350290,1738531837124,-504.73521305,0.00016575,2]
[351350291,1738531837133,-500.0,0.00016575,2]
[351350292,1738531837142,-500.0,0.00016575,2]
[351350293,1738531837151,-500.0,0.00016575,2]
[351350294,1738531837162,-500.0,0.00016575,2]
[351350295,1738531837170,-504.31293024,0.00016575,2]
[351350296,1738531837179,-500.0,0.00016575,2]
[351350297,1738531837188,-500.0,0.00016575,2]
[351350298,1738531837197,-500.0,0.00016575,2]
[351350299,1738531837207,-500.0,0.00016575,2]
[351350300,1738531837217,-500.0,0.00016575,2]
[351350301,1738531837226,-500.0,0.00016575,2]
[351350302,1738531837235,-500.0,0.00016575,2]
[351350303,1738531837244,-656.38,0.00016575,2]
[351350304,1738531837253,-500.0,0.00016575,2]
[351350305,1738531837262,-510.8243936,0.00016575,2]
[351350306,1738531837271,-506.07178593,0.00016575,2]
[351350307,1738531837281,-516.33,0.00016575,2]
[351350308,1738531837290,-500.0,0.00016575,2]
[351350309,1738531837300,-500.0,0.00016575,2]
[351350310,1738531837309,-506.43353054,0.00016575,2]
[351350311,1738531837317,-500.0,0.00016575,2]
[351350312,1738531837326,-500.0,0.00016575,2]
[351350313,1738531837335,-500.0,0.00016575,2]
[351350314,1738531837344,-500.0,0.00016575,2]
[351350315,1738531837352,-500.0,0.00016575,2]
[351350316,1738531837361,-500.0,0.00016575,2]
[351350317,1738531837370,-639.58805591,0.00016575,2]
[351350318,1738531837379,-500.0,0.00016575,2]
[351350319,1738531837388,-500.0,0.00016575,2]
[351350320,1738531837397,-500.0,0.00016575,2]
[351350321,1738531837409,-500.0,0.00016575,2]
[351350322,1738531837418,-1151.12,0.00016575,2]
[351350323,1738531837427,-500.0,0.00016575,2]
[351350324,1738531837436,-500.0,0.00016575,2]
[351350325,1738531837447,-500.0,0.00016575,2]
[351350326,1738531837455,-1454.73,0.00016575,2]
[351350327,1738531837464,-534.79563372,0.00016575,2]
[351350328,1738531837473,-2015.11,0.00016575,2]
[351350329,1738531837482,-500.0,0.00016575,2]
[351350330,1738531837492,-500.0,0.00016575,2]
[351350331,1738531837501,-500.0,0.00016575,2]
[351350332,1738531837510,-500.0,0.00016575,2]
[351350333,1738531837519,-787.49,0.00016575,2]
[351350334,1738531837528,-500.0,0.00016575,2]
[351350335,1738531837538,-500.0,0.00016575,2]
[351350336,1738531837547,-1303.75,0.00016575,2]
[351350337,1738531837556,-501.51376345,0.00016575,2]
[351350338,1738531837565,-500.0,0.00016575,2]
[351350339,1738531837573,-500.0,0.00016575,2]
[351350340,1738531837583,-500.0,0.00016575,2]
[351350341,1738531837592,-500.0,0.00016575,2]
[351350342,1738531837601,-500.0,0.00016575,2]
[351350343,1738531837610,-1567.68,0.00016575,2]
[351350344,1738531837619,-500.0,0.00016575,2]
[351350345,1738531837628,-500.0,0.00016575,2]
[351350346,1738531837637,-914.85,0.00016575,2]
[351350347,1738531837646,-500.0,0.00016575,2]
[351350348,1738531837656,-500.0,0.00016575,2]
[351350349,1738531837671,-500.0,0.00016575,2]
[351350350,1738531837680,-500.0,0.00016575,2]
[351350352,1738531837787,-500.0,0.00016575,2]
[351350354,1738531837797,-777.22,0.00016575,2]
[351350355,1738531837806,-7397.76,0.00016575,2]
[351350356,1738531837816,-2221.38,0.00016575,2]
[351350357,1738531837826,-500.0,0.00016575,2]
[351350358,1738531837835,-500.0,0.00016575,2]
[351350359,1738531837845,-500.0,0.00016575,2]
[351350360,1738531837855,-429.25498124,0.00016575,2]
[351350361,1738531837864,-954.01,0.00016575,2]
[351350362,1738531837873,-8524.75,0.00016575,2]
[351350364,1738531837883,-500.0,0.00016575,2]
[351350365,1738531837892,-1055.3,0.00016575,2]
[351350366,1738531837902,-500.0,0.00016575,2]
[351350367,1738531837914,-500.0,0.00016575,2]
[351350368,1738531837924,-500.0,0.00016575,2]
[351350369,1738531837933,-500.0,0.00016575,2]
[351350370,1738531837942,-874.8,0.00016575,2]
[351350371,1738531837952,-500.0,0.00016575,2]
[351350372,1738531837961,-2201.79,0.00016575,2]
[351350374,1738531837970,-500.0,0.00016575,2]
[351350376,1738531837979,-500.0,0.00016575,2]
[351350377,1738531837988,-1691.2,0.00016575,2]
[351350378,1738531837997,-500.0,0.00016575,2]
[351350379,1738531838006,-542.15097919,0.00016575,2]
[351350380,1738531838019,-500.0,0.00016575,2]
[351350381,1738531838028,-4424.29,0.00016575,2]
[351350382,1738531838037,-500.0,0.00016575,2]
[351350383,1738531838046,-500.0,0.00016575,2]
[351350385,1738531838057,-500.0,0.00016575,2]
[351350387,1738531838066,-5772.41,0.00016575,2]
[351350389,1738531838075,-540.58,0.00016575,2]
[351350390,1738531838084,-500.0,0.00016575,2]
[351350392,1738531838093,-1942.83,0.00016575,2]
[351350394,1738531838104,-500.0,0.00016575,2]
[351350396,1738531838113,-500.0,0.00016575,2]
[351350398,1738531838123,-850.29,0.00016575,2]
[351350400,1738531838132,-500.0,0.00016575,2]
[351350401,1738531838142,-500.0,0.00016575,2]
[351350403,1738531838152,-1875.74,0.00016575,2]
[351350405,1738531838166,-500.0,0.00016575,2]
[351350407,1738531838175,-500.0,0.00016575,2]
[351350409,1738531838185,-500.0,0.00016575,2]
[351350411,1738531838195,-500.0,0.00016575,2]
[351350412,1738531838205,-500.0,0.00016575,2]
[351350414,1738531838215,-611.40191264,0.00016575,2]
[351350416,1738531838224,-500.0,0.00016575,2]
[351350418,1738531838234,-500.0,0.00016575,2]
[351350420,1738531838243,-500.0,0.00016575,2]
[351350422,1738531838253,-500.0,0.00016575,2]
[351350424,1738531838263,-500.0,0.00016575,2]
[351350426,1738531838272,-500.0,0.00016575,2]
[351350428,1738531838283,-500.0,0.00016575,2]
[351350430,1738531838293,-25386.66350211,0.00016664,5]
[351350432,1738531838302,-10433.32097398,0.00016664,2]
[351350434,1738531838311,-10000.0,0.000167,2]
[351350437,1738531838321,-647.7,0.00016709,2]
[351350439,1738531838330,-647.7,0.00016709,2]
[351350441,1738531838339,-5344.23,0.0001671,2]
[351350443,1738531838348,-500.0,0.0001671,2]
[351350445,1738531838358,-151.0,0.0001671,2]
[351350447,1738531838367,-500.0,0.00016711,2]
[351350449,1738531838376,-647.7,0.00016711,2]
[351350451,1738531838385,-647.7,0.00016711,2]
[351350453,1738531838394,-647.7,0.00016711,2]
[351350455,1738531838404,-500.0,0.00016712,2]
[351350457,1738531838423,-500.0,0.00016712,2]
[351350459,1738531838432,-497.57504489,0.00016712,2]
[351350461,1738531838441,-500.0,0.00016712,2]
[351350462,1738531838451,-500.0,0.00016712,2]
[351350465,1738531838460,-500.0,0.00016712,2]
[351350467,1738531838470,-500.0,0.00016712,2]
[351350469,1738531838480,-500.0,0.00016712,2]
[351350471,1738531838489,-500.0,0.00016712,2]
[351350473,1738531838499,-500.0,0.00016712,2]
[351350475,1738531838508,-500.0,0.00016712,2]
[351350477,1738531838517,-500.0,0.00016712,2]
[351350479,1738531838527,-500.0,0.00016712,2]
[351350481,1738531838537,-500.0,0.00016712,2]
[351350482,1738531838547,-500.0,0.00016712,2]
[351350485,1738531838556,-506.19357122,0.00016712,2]
[351350488,1738531838566,-500.0,0.00016712,2]
[351350491,1738531838575,-500.0,0.00016712,2]
[351350494,1738531838584,-500.0,0.00016712,2]
[351350497,1738531838593,-500.0,0.00016712,2]
[351350500,1738531838603,-500.0,0.00016712,2]
[351350503,1738531838613,-291.0142808,0.00016712,2]
[351350505,1738531838623,-500.0,0.00016712,2]
[351350507,1738531838632,-500.0,0.00016712,2]
[351350509,1738531838642,-541.38828696,0.00016712,2]
[351350511,1738531838651,-662.66,0.00016712,2]
[351350513,1738531838666,-500.0,0.00016712,2]
[351350515,1738531838675,-500.0,0.00016712,2]
[351350516,1738531838685,-500.0,0.00016712,2]
[351350518,1738531838694,-500.0,0.00016712,2]
[351350520,1738531838703,-500.0,0.00016712,2]
[351350522,1738531838713,-500.0,0.00016712,2]
[351350525,1738531838723,-500.0,0.00016712,2]
[351350526,1738531838733,-152.356257,0.00016712,2]
[351350529,1738531838743,-500.0,0.00016712,2]
[351350531,1738531838752,-500.0,0.00016712,2]
[351350533,1738531838761,-500.0,0.00016712,2]
[351350534,1738531838770,-500.0,0.00016712,2]
[351350537,1738531838779,-500.0,0.00016712,2]
[351350539,1738531838788,-500.0,0.00016712,2]
[351350541,1738531838797,-500.0,0.00016712,2]
[351350543,1738531838806,-500.0,0.00016712,2]
[351350545,1738531838815,-656.38,0.00016712,2]
[351350547,1738531838824,-500.0,0.00016712,2]
[351350549,1738531838833,-151.0,0.00016712,2]
[351350550,1738531838842,-516.33,0.00016712,2]
[351350553,1738531838852,-500.0,0.00016712,2]
[351350554,1738531838861,-500.0,0.00016712,2]
[351350556,1738531838870,-151.0,0.00016712,2]
[351350558,1738531838879,-233.131715,0.00016712,2]
[351350560,1738531838888,-233.131715,0.00016712,2]
[351350562,1738531838897,-500.0,0.00016712,2]
[351350564,1738531838908,-500.0,0.00016712,2]
[351350566,1738531838918,-500.0,0.00016712,2]
[351350568,1738531838927,-500.0,0.00016712,2]
[351350570,1738531838935,-500.0,0.00016712,2]
[351350572,1738531838944,-500.0,0.00016712,2]
[351350574,1738531838953,-151.0,0.00016712,2]
[351350576,1738531838962,-500.0,0.00016712,2]
[351350578,1738531838971,-500.0,0.00016712,2]
[351350580,1738531838981,-500.0,0.00016712,2]
[351350582,1738531838990,-500.0,0.00016712,2]
[351350584,1738531838999,-1151.12,0.00016712,2]
[351350586,1738531839009,-500.0,0.00016712,2]
[351350588,1738531839018,-500.0,0.00016712,2]
[351350590,1738531839030,-500.0,0.00016712,2]
[351350592,1738531839039,-1454.73,0.00016712,2]
[351350594,1738531839049,-2015.11,0.00016712,2]
[351350596,1738531839059,-500.0,0.00016712,2]
[351350598,1738531839069,-500.0,0.00016712,2]
[351350600,1738531839079,-500.0,0.00016712,2]
[351350602,1738531839089,-787.49,0.00016712,2]
[351350604,1738531839101,-500.0,0.00016712,2]
[351350606,1738531839111,-618.33425261,0.00016712,2]
[351350608,1738531839120,-1303.75,0.00016712,2]
[351350610,1738531839129,-500.0,0.00016712,2]
[351350612,1738531839139,-500.0,0.00016712,2]
[351350614,1738531839148,-376.37495816,0.00016712,2]
[351350616,1738531839162,-500.0,0.00016712,2]
[351350619,1738531839172,-1567.68,0.00016712,2]
[351350621,1738531839182,-500.0,0.00016712,2]
[351350623,1738531839192,-914.85,0.00016712,2]
[351350625,1738531839202,-500.0,0.00016712,2]
[351350627,1738531839211,-500.0,0.00016712,2]
[351350629,1738531839220,-500.0,0.00016712,2]
[351350631,1738531839229,-500.0,0.00016712,2]
[351350633,1738531839241,-500.0,0.00016712,2]
[351350635,1738531839250,-777.22,0.00016712,2]
[351350637,1738531839260,-151.0,0.00016712,2]
[351350639,1738531839269,-7397.76,0.00016712,2]
[351350641,1738531839278,-2221.38,0.00016712,2]
[351350643,1738531839287,-438.44249704,0.00016712,2]
[351350645,1738531839297,-151.0,0.00016712,2]
[351350647,1738531839305,-500.0,0.00016712,2]
[351350649,1738531839314,-151.0,0.00016712,2]
[351350650,1738531839325,-151.0,0.00016712,2]
[351350652,1738531839334,-151.0,0.00016712,2]
[351350654,1738531839343,-151.0,0.00016712,2]
[351350656,1738531839352,-156.48968797,0.00016712,2]
[351350658,1738531839362,-151.0,0.00016712,2]
[351350660,1738531839371,-954.01,0.00016712,2]
[351350662,1738531839380,-151.0,0.00016712,2]
[351350664,1738531839389,-8524.75,0.00016712,2]
[351350666,1738531839399,-164.27514237,0.00016712,2]
[351350668,1738531839412,-151.0,0.00016712,2]
[351350671,1738531839421,-1055.3,0.00016712,2]
[351350673,1738531839429,-500.0,0.00016712,2]
[351350674,1738531839439,-500.0,0.00016712,2]
[351350676,1738531839448,-290.71284236,0.00016712,2]
[351350678,1738531839459,-500.0,0.00016712,2]
[351350680,1738531839469,-151.0,0.00016712,2]
[351350682,1738531839478,-874.8,0.00016712,2]
[351350684,1738531839487,-500.0,0.00016712,2]
[351350686,1738531839497,-279.332431,0.00016712,2]
[351350688,1738531839506,-2201.79,0.00016712,2]
[351350690,1738531839515,-151.0,0.00016712,2]
[351350692,1738531839524,-500.0,0.00016712,2]
[351350694,1738531839533,-500.0,0.00016712,2]
[351350696,1738531839543,-151.0,0.00016712,2]
[351350699,1738531839553,-1691.2,0.00016712,2]
[351350701,1738531839563,-500.0,0.00016712,2]
[351350703,1738531839572,-151.0,0.00016712,2]
[351350705,1738531839581,-500.0,0.00016712,2]
[351350707,1738531839592,-4424.29,0.00016712,2]
[351350709,1738531839601,-500.0,0.00016712,2]
[351350711,1738531839610,-500.0,0.00016712,2]
[351350713,1738531839619,-500.0,0.00016712,2]
[351350715,1738531839628,-5772.41,0.00016712,2]
[351350726,1738531839718,-540.58,0.00016712,2]
[351350728,1738531839727,-500.0,0.00016712,2]
[351350730,1738531839735,-1942.83,0.00016712,2]
[351350732,1738531839744,-500.0,0.00016712,2]
[351350734,1738531839754,-500.0,0.00016712,2]
[351350736,1738531839763,-850.29,0.00016712,2]
[351350738,1738531839772,-500.0,0.00016712,2]
[351350740,1738531839781,-1875.74,0.00016712,2]
[351350742,1738531839791,-500.0,0.00016712,2]
[351350744,1738531839800,-496.70395487,0.00016712,2]
[351350746,1738531839809,-500.0,0.00016712,2]
[351350748,1738531839819,-500.0,0.00016712,2]
[351350750,1738531839828,-500.0,0.00016712,2]
[351350753,1738531839837,-500.0,0.00016712,2]
[351350755,1738531839848,-500.0,0.00016712,2]
[351350757,1738531839858,-500.0,0.00016712,2]
[351350759,1738531839868,-500.0,0.00016712,2]
[351350761,1738531839877,-229.27798664,0.00016712,2]
[351350763,1738531839886,-500.0,0.00016712,2]
[351350765,1738531839895,-500.0,0.00016712,2]
[351350768,1738531839904,-297.58999872,0.00016784,2]
[351350771,1738531839917,-647.7,0.00016846,2]
[351350773,1738531839927,-151.0,0.00016847,2]
[351350776,1738531839934,-151.0,0.00016847,2]
[351350779,1738531839943,-151.0,0.00016847,2]
[351350781,1738531839953,-151.0,0.00016847,2]
[351350783,1738531839963,-5344.23,0.00016847,2]
[351350785,1738531839972,-500.0,0.00016847,2]
[351350787,1738531839982,-151.0,0.00016847,2]
[351350789,1738531839992,-239.932643,0.00016847,2]
[351350791,1738531840002,-151.0,0.00016847,2]
[351350793,1738531840012,-151.0,0.00016847,2]
[351350795,1738531840024,-151.0,0.00016847,2]
[351350797,1738531840035,-151.0,0.00016847,2]
[351350799,1738531840044,-502.54391737,0.00016848,2]
[351350801,1738531840053,-647.7,0.00016848,2]
[351350803,1738531840064,-647.7,0.00016848,2]
[351350805,1738531840074,-647.7,0.00016848,2]
[351350807,1738531840084,-647.7,0.00016848,2]
[351350809,1738531840094,-647.7,0.00016848,2]
[351350812,1738531840105,-647.7,0.00016848,2]
[351350813,1738531840115,-647.81,0.00016848,2]
[351350815,1738531840124,-229.43699513,0.00016849,2]
[351350817,1738531840134,-503.91950484,0.00016849,2]
[351350818,1738531840144,-500.0,0.00016849,2]
[351350819,1738531840156,-500.0,0.00016849,2]
[351350820,1738531840174,-500.0,0.00016849,2]
[351350821,1738531840185,-500.0,0.00016849,2]
[351350822,1738531840196,-500.0,0.00016849,2]
[351350823,1738531840206,-500.0,0.00016849,2]
[351350824,1738531840217,-500.0,0.00016849,2]
[351350825,1738531840228,-500.0,0.00016849,2]
[351350826,1738531840238,-500.0,0.00016849,2]
[351350827,1738531840248,-500.0,0.00016849,2]
[351350828,1738531840259,-500.0,0.00016849,2]
[351350829,1738531840268,-151.0,0.00016849,2]
[351350830,1738531840278,-500.0,0.00016849,2]
[351350831,1738531840288,-500.0,0.00016849,2]
[351350832,1738531840298,-662.66,0.00016849,2]
[351350833,1738531840307,-500.0,0.00016849,2]
[351350834,1738531840317,-500.0,0.00016849,2]
[351350835,1738531840327,-500.0,0.00016849,2]
[351350836,1738531840336,-151.0,0.00016849,2]
[351350837,1738531840345,-500.0,0.00016849,2]
[351350838,1738531840354,-151.0,0.00016849,2]
[351350840,1738531840363,-500.0,0.00016849,2]
[351350841,1738531840373,-500.0,0.00016849,2]
[351350842,1738531840382,-500.0,0.00016849,2]
[351350844,1738531840392,-500.0,0.00016849,2]
[351350846,1738531840401,-500.0,0.00016849,2]
[351350848,1738531840415,-500.0,0.00016849,2]
[351350850,1738531840425,-500.0,0.00016849,2]
[351350852,1738531840434,-500.0,0.00016849,2]
[351350854,1738531840443,-500.0,0.00016849,2]
[351350856,1738531840452,-500.0,0.00016849,2]
[351350858,1738531840462,-656.38,0.00016849,2]
[351350860,1738531840470,-602.28233632,0.00016849,2]
[351350862,1738531840479,-151.0,0.00016849,2]
[351350864,1738531840489,-516.33,0.00016849,2]
[351350866,1738531840498,-500.0,0.00016849,2]
[351350868,1738531840508,-500.0,0.00016849,2]
[351350870,1738531840518,-151.0,0.00016849,2]
[351350872,1738531840526,-233.131715,0.00016849,2]
[351350874,1738531840536,-233.131715,0.00016849,2]
[351350876,1738531840544,-500.0,0.00016849,2]
[351350878,1738531840553,-500.0,0.00016849,2]
[351350880,1738531840562,-500.0,0.00016849,2]
[351350882,1738531840572,-500.0,0.00016849,2]
[351350884,1738531840581,-500.0,0.00016849,2]
[351350886,1738531840590,-151.0,0.00016849,2]
[351350887,1738531840598,-500.0,0.00016849,2]
[351350889,1738531840608,-500.0,0.00016849,2]
[351350891,1738531840617,-500.0,0.00016849,2]
[351350893,1738531840627,-500.0,0.00016849,2]
[351350895,1738531840636,-1151.12,0.00016849,2]
[351350898,1738531840646,-500.0,0.00016849,2]
[351350900,1738531840655,-500.0,0.00016849,2]
[351350902,1738531840669,-500.0,0.00016849,2]
[351350904,1738531840679,-1454.73,0.00016849,2]
[351350906,1738531840688,-2015.11,0.00016849,2]
[351350908,1738531840698,-500.0,0.00016849,2]
[351350910,1738531840707,-500.0,0.00016849,2]
[351350912,1738531840717,-500.0,0.00016849,2]
[351350914,1738531840726,-787.49,0.00016849,2]
[351350916,1738531840735,-500.0,0.00016849,2]
[351350918,1738531840743,-1303.75,0.00016849,2]
[351350919,1738531840752,-500.0,0.00016849,2]
[351350921,1738531840762,-500.0,0.00016849,2]
[351350923,1738531840771,-500.0,0.00016849,2]
[351350926,1738531840782,-1567.68,0.00016849,2]
[351350928,1738531840791,-500.0,0.00016849,2]
[351350930,1738531840801,-914.85,0.00016849,2]
[351350931,1738531840811,-500.0,0.00016849,2]
[351350933,1738531840820,-500.0,0.00016849,2]
[351350935,1738531840829,-500.0,0.00016849,2]
[351350937,1738531840839,-521.91521285,0.00016849,2]
[351350939,1738531840850,-500.0,0.00016849,2]
[351350942,1738531840859,-777.22,0.00016849,2]
[351350944,1738531840868,-151.0,0.00016849,2]
[351350946,1738531840878,-7397.76,0.00016849,2]
[351350948,1738531840888,-2221.38,0.00016849,2]
[351350950,1738531840897,-151.0,0.00016849,2]
[351350952,1738531840906,-500.0,0.00016849,2]
[351350954,1738531840920,-151.0,0.00016849,2]
[351350955,1738531840929,-151.0,0.00016849,2]
[351350957,1738531840939,-151.0,0.00016849,2]
[351350959,1738531840948,-151.0,0.00016849,2]
[351350962,1738531840958,-954.01,0.00016849,2]
[351350963,1738531840968,-8524.75,0.00016849,2]
[351350965,1738531840977,-151.0,0.00016849,2]
[351350967,1738531840987,-1055.3,0.00016849,2]
[351350969,1738531840996,-500.0,0.00016849,2]
[351350971,1738531841008,-500.0,0.00016849,2]
[351350973,1738531841018,-500.0,0.00016849,2]
[351350975,1738531841029,-151.0,0.00016849,2]
[351350977,1738531841038,-874.8,0.00016849,2]
[351350979,1738531841047,-500.0,0.00016849,2]
[351350981,1738531841056,-2201.79,0.00016849,2]
[351350983,1738531841066,-500.0,0.00016849,2]
[351350985,1738531841075,-500.0,0.00016849,2]
[351350987,1738531841084,-1691.2,0.00016849,2]
[351350989,1738531841093,-500.0,0.00016849,2]
[351350991,1738531841105,-4424.29,0.00016849,2]
[351350993,1738531841114,-500.0,0.00016849,2]
[351350995,1738531841123,-500.0,0.00016849,2]
[351350997,1738531841132,-5772.41,0.00016849,2]
[351350999,1738531841142,-540.58,0.00016849,2]
[351351001,1738531841151,-500.0,0.00016849,2]
[351351003,1738531841163,-1942.83,0.00016849,2]
[351351005,1738531841172,-500.0,0.00016849,2]
[351351007,1738531841181,-850.29,0.00016849,2]
[351351009,1738531841191,-500.0,0.00016849,2]
[351351011,1738531841200,-1875.74,0.00016849,2]
[351351013,1738531841209,-500.0,0.00016849,2]
[351351015,1738531841218,-500.0,0.00016849,2]
[351351017,1738531841226,-500.0,0.00016849,2]
[351351019,1738531841235,-500.0,0.00016849,2]
[351351021,1738531841244,-500.0,0.00016849,2]
[351351023,1738531841253,-500.0,0.00016849,2]
[351351025,1738531841262,-500.0,0.00016849,2]
[351351027,1738531841272,-500.0,0.00016849,2]